[Event "*** Titled Tuesday Blitz"]
[Site "Chess.com"]
[Date "2020.04.14"]
[Round "3"]
[White "Fighterman91"]
[Black "Witaliss"]
[Result "1-0"]
[WhiteElo "2694"]
[BlackElo "2422"]
[TimeControl "180+1"]
[EndTime "10:29:57 PDT"]
[Termination "Fighterman91 won on time"]

1. d4 {[%clk 0:03:00.9]} 1... d5 {[%clk 0:02:58.8]} 2. Bf4 {[%clk 0:03:01.4]}
2... c6 {[%clk 0:02:57.9]} 3. e3 {[%clk 0:03:01.4]} 3... Nf6 {[%clk 0:02:57.7]}
4. Nf3 {[%clk 0:03:00.6]} 4... Bg4 {[%clk 0:02:56.6]} 5. c4 {[%clk 0:02:59.3]}
5... e6 {[%clk 0:02:56.3]} 6. Qb3 {[%clk 0:02:59.4]} 6... Qb6 {[%clk 0:02:55.4]}
7. c5 {[%clk 0:02:58.8]} 7... Qxb3 {[%clk 0:02:53.9]} 8. axb3 {[%clk 0:02:59.7]}
8... Bxf3 {[%clk 0:02:50.1]} 9. gxf3 {[%clk 0:02:59.2]} 9... Nbd7 {[%clk
0:02:47.5]} 10. b4 {[%clk 0:02:59.7]} 10... a6 {[%clk 0:02:43.5]} 11. b5 {[%clk
0:02:59.9]} 11... cxb5 {[%clk 0:02:42]} 12. Bxb5 {[%clk 0:03:00.3]} 12... Be7
{[%clk 0:02:37.9]} 13. c6 {[%clk 0:02:50]} 13... bxc6 {[%clk 0:02:29.8]} 14.
Bxc6 {[%clk 0:02:50.9]} 14... Rc8 {[%clk 0:02:25.7]} 15. Rxa6 {[%clk 0:02:48]}
15... O-O {[%clk 0:02:24.4]} 16. Nc3 {[%clk 0:02:20.8]} 16... Nb8 {[%clk
0:02:21.3]} 17. Bxb8 {[%clk 0:02:18.8]} 17... Rxb8 {[%clk 0:02:20.9]} 18. Ra2
{[%clk 0:02:05.6]} 18... Rfc8 {[%clk 0:02:16.6]} 19. Ba4 {[%clk 0:01:54.3]}
19... Bb4 {[%clk 0:02:08.7]} 20. Kd2 {[%clk 0:01:40.1]} 20... Ba5 {[%clk
0:02:02.2]} 21. Bc2 {[%clk 0:01:25.8]} 21... Bb4 {[%clk 0:01:50.5]} 22. Bd3
{[%clk 0:01:09.6]} 22... Nd7 {[%clk 0:01:46.6]} 23. Rc1 {[%clk 0:00:52.5]} 23...
g6 {[%clk 0:01:43.5]} 24. Kd1 {[%clk 0:00:44]} 24... Nb6 {[%clk 0:01:36.9]} 25.
Ne2 {[%clk 0:00:20.2]} 25... Kg7 {[%clk 0:01:33.7]} 26. Rxc8 {[%clk 0:00:19.2]}
26... Nxc8 {[%clk 0:01:30.4]} 27. b3 {[%clk 0:00:18.1]} 27... g5 {[%clk
0:01:21.6]} 28. f4 {[%clk 0:00:17.1]} 28... h6 {[%clk 0:01:20.1]} 29. fxg5
{[%clk 0:00:14.2]} 29... hxg5 {[%clk 0:01:19.9]} 30. Ra6 {[%clk 0:00:09.3]}
30... Bd6 {[%clk 0:01:15.9]} 31. Rc6 {[%clk 0:00:08.2]} 31... Bxh2 {[%clk
0:01:13.2]} 32. Kc2 {[%clk 0:00:06.2]} 32... Ne7 {[%clk 0:01:10.5]} 33. Ra6
{[%clk 0:00:04.9]} 33... g4 {[%clk 0:01:06.1]} 34. Kd2 {[%clk 0:00:02.3]} 34...
Rxb3 {[%clk 0:01:03.9]} 35. Bc2 {[%clk 0:00:03]} 35... Rb7 {[%clk 0:01:02.6]}
36. Ra8 {[%clk 0:00:02.2]} 36... f5 {[%clk 0:01:00.5]} 37. Ra1 {[%clk
0:00:02.5]} 37... Bd6 {[%clk 0:00:58.8]} 38. Ra6 {[%clk 0:00:02.8]} 38... Rd7
{[%clk 0:00:56.5]} 39. Ba4 {[%clk 0:00:03.1]} 39... Rd8 {[%clk 0:00:56.4]} 40.
Nc1 {[%clk 0:00:01.8]} 40... Ng8 {[%clk 0:00:53.2]} 41. Nd3 {[%clk 0:00:02.4]}
41... Nf6 {[%clk 0:00:52.4]} 42. Ra7+ {[%clk 0:00:03]} 42... Kg6 {[%clk
0:00:51.3]} 43. Ke2 {[%clk 0:00:02.5]} 43... Ne4 {[%clk 0:00:50.5]} 44. Bd7
{[%clk 0:00:03.1]} 44... Kf6 {[%clk 0:00:49.5]} 45. Bc6 {[%clk 0:00:03.5]} 45...
Nc3+ {[%clk 0:00:48.6]} 46. Kd2 {[%clk 0:00:03.4]} 46... Ne4+ {[%clk 0:00:48]}
47. Ke2 {[%clk 0:00:04]} 47... Rc8 {[%clk 0:00:47.2]} 48. Ra6 {[%clk 0:00:04.6]}
48... g3 {[%clk 0:00:42.4]} 49. fxg3 {[%clk 0:00:04.4]} 49... Nxg3+ {[%clk
0:00:42.2]} 50. Kf3 {[%clk 0:00:04.9]} 50... Ne4 {[%clk 0:00:42.2]} 51. Nf2
{[%clk 0:00:05.4]} 51... Rg8 {[%clk 0:00:40.8]} 52. Nxe4+ {[%clk 0:00:04.5]}
52... dxe4+ {[%clk 0:00:40.1]} 53. Kf2 {[%clk 0:00:05.4]} 53... Bg3+ {[%clk
0:00:38.9]} 54. Kf1 {[%clk 0:00:04.9]} 54... Rb8 {[%clk 0:00:36.7]} 55. Bd7
{[%clk 0:00:03]} 55... Rb2 {[%clk 0:00:34.1]} 56. Bxe6 {[%clk 0:00:02.7]} 56...
Kg5 {[%clk 0:00:32.5]} 57. Ra5 {[%clk 0:00:02.6]} 57... Rf2+ {[%clk 0:00:30.4]}
58. Kg1 {[%clk 0:00:02]} 58... Rf3 {[%clk 0:00:30.1]} 59. Kg2 {[%clk 0:00:02.6]}
59... Kg4 {[%clk 0:00:28.4]} 60. Bxf5+ {[%clk 0:00:01.3]} 60... Kh4 {[%clk
0:00:24.8]} 61. Bxe4 {[%clk 0:00:01.6]} 61... Rxe3 {[%clk 0:00:24.5]} 62. Bf3
{[%clk 0:00:02.5]} 62... Rxf3 {[%clk 0:00:12.3]} 63. Kxf3 {[%clk 0:00:03]} 63...
Bh2 {[%clk 0:00:09.9]} 64. Rb5 {[%clk 0:00:03.9]} 64... Bg1 {[%clk 0:00:07.9]}
65. d5 {[%clk 0:00:04.8]} 65... Kg5 {[%clk 0:00:04.2]} 66. Ke4 {[%clk
0:00:05.7]} 66... Kf6 {[%clk 0:00:03.7]} 67. Rb1 {[%clk 0:00:06.6]} 67... Bc5
{[%clk 0:00:02.5]} 68. Rf1+ {[%clk 0:00:07.5]} 68... Ke7 {[%clk 0:00:01.8]} 69.
Rh1 {[%clk 0:00:08.2]} 1-0

[Event "*** Titled Tuesday Blitz"]
[Site "Chess.com"]
[Date "2020.04.14"]
[Round "3"]
[White "Rsnr"]
[Black "viktorskliarov"]
[Result "1-0"]
[WhiteElo "2871"]
[BlackElo "2643"]
[TimeControl "180+1"]
[EndTime "10:30:02 PDT"]
[Termination "Rsnr won by checkmate"]

1. d4 {[%clk 0:03:00.9]} 1... Nf6 {[%clk 0:02:57.2]} 2. c4 {[%clk 0:03:01.3]}
2... e6 {[%clk 0:02:53.9]} 3. Nf3 {[%clk 0:03:01]} 3... b6 {[%clk 0:02:53.7]} 4.
a3 {[%clk 0:03:01.1]} 4... Bb7 {[%clk 0:02:53.7]} 5. Nc3 {[%clk 0:03:01.6]} 5...
d5 {[%clk 0:02:54.2]} 6. Bg5 {[%clk 0:03:02]} 6... Be7 {[%clk 0:02:52.6]} 7.
Bxf6 {[%clk 0:03:01.6]} 7... Bxf6 {[%clk 0:02:52.7]} 8. cxd5 {[%clk 0:03:02.5]}
8... exd5 {[%clk 0:02:52.1]} 9. g3 {[%clk 0:03:03.4]} 9... O-O {[%clk
0:02:50.4]} 10. Bg2 {[%clk 0:03:04]} 10... Re8 {[%clk 0:02:49.1]} 11. O-O {[%clk
0:03:01.3]} 11... Nd7 {[%clk 0:02:47.6]} 12. Rc1 {[%clk 0:02:56.7]} 12... c6
{[%clk 0:02:46.6]} 13. e3 {[%clk 0:02:47.9]} 13... Nf8 {[%clk 0:02:43.8]} 14.
Qc2 {[%clk 0:02:45]} 14... Ne6 {[%clk 0:02:39.1]} 15. Rfd1 {[%clk 0:02:45.6]}
15... Ng5 {[%clk 0:02:34]} 16. Ne5 {[%clk 0:02:33]} 16... Rc8 {[%clk 0:02:11.4]}
17. f4 {[%clk 0:02:29.8]} 17... Ne6 {[%clk 0:02:09.4]} 18. b4 {[%clk 0:02:29.7]}
18... b5 {[%clk 0:01:58.4]} 19. e4 {[%clk 0:02:02.6]} 19... Qb6 {[%clk
0:01:23.5]} 20. Qf2 {[%clk 0:01:59.1]} 20... Rcd8 {[%clk 0:01:16.1]} 21. exd5
{[%clk 0:01:55.3]} 21... cxd5 {[%clk 0:01:15.1]} 22. h4 {[%clk 0:01:25.7]} 22...
a5 {[%clk 0:01:03.5]} 23. Bf1 {[%clk 0:01:16]} 23... axb4 {[%clk 0:01:01.1]} 24.
axb4 {[%clk 0:01:16.9]} 24... Be7 {[%clk 0:00:55.1]} 25. Bxb5 {[%clk 0:01:16]}
25... Bxb4 {[%clk 0:00:43.6]} 26. Bxe8 {[%clk 0:01:14.8]} 26... Rxe8 {[%clk
0:00:43.5]} 27. Rb1 {[%clk 0:01:07.9]} 27... Qd6 {[%clk 0:00:26.7]} 28. Qb2
{[%clk 0:00:51.7]} 28... Bxc3 {[%clk 0:00:25.7]} 29. Qxc3 {[%clk 0:00:52.6]}
29... Ba6 {[%clk 0:00:23.5]} 30. Qc6 {[%clk 0:00:45.1]} 30... Qxc6 {[%clk
0:00:23.4]} 31. Nxc6 {[%clk 0:00:46]} 31... h5 {[%clk 0:00:18]} 32. Re1 {[%clk
0:00:42.7]} 32... g6 {[%clk 0:00:17.6]} 33. Re5 {[%clk 0:00:33.8]} 33... Bc4
{[%clk 0:00:17.2]} 34. Rbe1 {[%clk 0:00:18.9]} 34... Kg7 {[%clk 0:00:16.6]} 35.
f5 {[%clk 0:00:19.4]} 35... gxf5 {[%clk 0:00:16.2]} 36. Rxf5 {[%clk 0:00:20.3]}
36... Rc8 {[%clk 0:00:15.9]} 37. Ne5 {[%clk 0:00:20.7]} 37... Rc7 {[%clk
0:00:15.6]} 38. Nf3 {[%clk 0:00:20.3]} 38... Ra7 {[%clk 0:00:11.5]} 39. Rxh5
{[%clk 0:00:17]} 39... Bd3 {[%clk 0:00:11.6]} 40. Rxd5 {[%clk 0:00:16.3]} 40...
Ra2 {[%clk 0:00:11.5]} 41. Rde5 {[%clk 0:00:15]} 41... Bc4 {[%clk 0:00:09.7]}
42. h5 {[%clk 0:00:11.8]} 42... Bd3 {[%clk 0:00:09.1]} 43. R1e3 {[%clk
0:00:09.1]} 43... Bb1 {[%clk 0:00:08.5]} 44. d5 {[%clk 0:00:08.9]} 44... Nf8
{[%clk 0:00:07.8]} 45. d6 {[%clk 0:00:09.3]} 45... Kf6 {[%clk 0:00:07.9]} 46.
Rd5 {[%clk 0:00:07.8]} 46... Nd7 {[%clk 0:00:07.8]} 47. Rd2 {[%clk 0:00:07.9]}
47... Ra6 {[%clk 0:00:06.7]} 48. g4 {[%clk 0:00:08]} 48... Bh7 {[%clk
0:00:06.5]} 49. g5+ {[%clk 0:00:08.5]} 49... Kg7 {[%clk 0:00:06.9]} 50. Kf2
{[%clk 0:00:08.6]} 50... Nc5 {[%clk 0:00:06.8]} 51. Rd4 {[%clk 0:00:06.8]} 51...
Ne6 {[%clk 0:00:06.4]} 52. d7 {[%clk 0:00:05.4]} 52... Nd8 {[%clk 0:00:06.1]}
53. Re8 {[%clk 0:00:05.4]} 53... Ra2+ {[%clk 0:00:06.2]} 54. Kg3 {[%clk
0:00:05.6]} 54... Ra8 {[%clk 0:00:06.8]} 55. Rc4 {[%clk 0:00:05.3]} 55... Bf5
{[%clk 0:00:06.1]} 56. Rc8 {[%clk 0:00:05.3]} 56... Bxd7 {[%clk 0:00:06]} 57.
Rxa8 {[%clk 0:00:05.2]} 57... Bxe8 {[%clk 0:00:05.4]} 58. Rxd8 {[%clk
0:00:05.9]} 58... Bc6 {[%clk 0:00:06.3]} 59. Nd4 {[%clk 0:00:05.9]} 59... Be4
{[%clk 0:00:06.2]} 60. Rd7 {[%clk 0:00:05.6]} 60... Bb1 {[%clk 0:00:05.4]} 61.
Kf4 {[%clk 0:00:06]} 61... Kg8 {[%clk 0:00:05.5]} 62. Nf5 {[%clk 0:00:05.8]}
62... Ba2 {[%clk 0:00:06.4]} 63. h6 {[%clk 0:00:05.5]} 63... Kh8 {[%clk
0:00:06.6]} 64. g6 {[%clk 0:00:05.6]} 64... fxg6 {[%clk 0:00:06.4]} 65. Nh4
{[%clk 0:00:06.3]} 65... Bb1 {[%clk 0:00:04.6]} 66. Kg5 {[%clk 0:00:06.5]} 66...
Kg8 {[%clk 0:00:04.8]} 67. Rg7+ {[%clk 0:00:06.9]} 67... Kh8 {[%clk 0:00:04.9]}
68. Nxg6+ {[%clk 0:00:07.5]} 68... Bxg6 {[%clk 0:00:05.3]} 69. Rxg6 {[%clk
0:00:08.4]} 69... Kh7 {[%clk 0:00:05.6]} 70. Kh5 {[%clk 0:00:08.7]} 70... Kh8
{[%clk 0:00:06.5]} 71. Ra6 {[%clk 0:00:09.1]} 71... Kh7 {[%clk 0:00:07]} 72.
Ra7+ {[%clk 0:00:09.7]} 72... Kg8 {[%clk 0:00:07.5]} 73. Kg6 {[%clk 0:00:10]}
73... Kh8 {[%clk 0:00:07.6]} 74. Ra8# {[%clk 0:00:02]} 1-0

[Event "*** Titled Tuesday Blitz"]
[Site "Chess.com"]
[Date "2020.04.14"]
[Round "3"]
[White "FROGGY64"]
[Black "JozefKneht"]
[Result "0-1"]
[WhiteElo "2377"]
[BlackElo "2606"]
[TimeControl "180+1"]
[EndTime "10:30:03 PDT"]
[Termination "JozefKneht won by resignation"]

1. d4 {[%clk 0:03:00.9]} 1... d5 {[%clk 0:02:58.3]} 2. c4 {[%clk 0:03:01]} 2...
e6 {[%clk 0:02:58.5]} 3. Nf3 {[%clk 0:02:59.8]} 3... Nf6 {[%clk 0:02:59]} 4. g3
{[%clk 0:03:00.1]} 4... Be7 {[%clk 0:02:59.5]} 5. Bg2 {[%clk 0:03:00.4]} 5...
O-O {[%clk 0:03:00.4]} 6. O-O {[%clk 0:03:00.9]} 6... dxc4 {[%clk 0:03:01]} 7.
Qc2 {[%clk 0:03:00.7]} 7... a6 {[%clk 0:03:00.8]} 8. a4 {[%clk 0:02:56.2]} 8...
Bd7 {[%clk 0:02:59.9]} 9. Qxc4 {[%clk 0:02:56.3]} 9... Bc6 {[%clk 0:02:58.5]}
10. Bf4 {[%clk 0:02:54.6]} 10... Bd6 {[%clk 0:02:55.7]} 11. Bg5 {[%clk
0:02:53.3]} 11... a5 {[%clk 0:02:48.1]} 12. Nbd2 {[%clk 0:02:52.6]} 12... Bd5
{[%clk 0:02:39.7]} 13. Qc1 {[%clk 0:02:51.2]} 13... Bxf3 {[%clk 0:02:38.3]} 14.
Bxf3 {[%clk 0:02:49.4]} 14... c6 {[%clk 0:02:39.2]} 15. Nc4 {[%clk 0:02:37.7]}
15... Be7 {[%clk 0:02:37.5]} 16. Rd1 {[%clk 0:02:36.9]} 16... Na6 {[%clk
0:02:36.6]} 17. Ne5 {[%clk 0:02:35.8]} 17... Nb4 {[%clk 0:02:36.2]} 18. h4
{[%clk 0:02:32.8]} 18... Nd7 {[%clk 0:02:31.9]} 19. Bxe7 {[%clk 0:02:31.5]}
19... Qxe7 {[%clk 0:02:30.5]} 20. Nc4 {[%clk 0:02:29.8]} 20... Qd8 {[%clk
0:02:17.1]} 21. e4 {[%clk 0:02:25.6]} 21... Nb6 {[%clk 0:02:10.1]} 22. Ne3
{[%clk 0:02:22.1]} 22... Qe7 {[%clk 0:02:06.1]} 23. Qc3 {[%clk 0:02:19.9]} 23...
Rfd8 {[%clk 0:02:05]} 24. Bg2 {[%clk 0:02:19.7]} 24... Rd7 {[%clk 0:02:02.2]}
25. Qc5 {[%clk 0:02:16.8]} 25... Qd8 {[%clk 0:01:54.1]} 26. b3 {[%clk
0:02:05.5]} 26... h6 {[%clk 0:01:47]} 27. Rac1 {[%clk 0:02:04.1]} 27... Re7
{[%clk 0:01:25]} 28. Kh2 {[%clk 0:02:00.3]} 28... Nd7 {[%clk 0:01:23]} 29. Qd6
{[%clk 0:01:57.9]} 29... Nf6 {[%clk 0:01:23.4]} 30. Qf4 {[%clk 0:01:53.7]} 30...
Rd7 {[%clk 0:01:22.1]} 31. Qe5 {[%clk 0:01:41.4]} 31... Rc8 {[%clk 0:01:05.8]}
32. f4 {[%clk 0:01:29.5]} 32... b6 {[%clk 0:00:59.7]} 33. f5 {[%clk 0:01:28.2]}
33... Re7 {[%clk 0:00:55.7]} 34. Qf4 {[%clk 0:01:23.1]} 34... Qe8 {[%clk
0:00:46.5]} 35. e5 {[%clk 0:01:22.7]} 35... Nfd5 {[%clk 0:00:42.6]} 36. Nxd5
{[%clk 0:01:22.3]} 36... cxd5 {[%clk 0:00:39.3]} 37. Rxc8 {[%clk 0:01:17.8]}
37... Qxc8 {[%clk 0:00:39.1]} 38. f6 {[%clk 0:01:18]} 38... Rc7 {[%clk 0:00:39]}
39. fxg7 {[%clk 0:01:15.9]} 39... Kxg7 {[%clk 0:00:36.4]} 40. Rf1 {[%clk
0:01:11.6]} 40... Qd8 {[%clk 0:00:35]} 41. Qg4+ {[%clk 0:01:10]} 41... Kh7
{[%clk 0:00:32.2]} 42. Rf6 {[%clk 0:01:09.8]} 42... Qg8 {[%clk 0:00:32]} 43. Qf4
{[%clk 0:01:09.1]} 43... Qg7 {[%clk 0:00:31.6]} 44. g4 {[%clk 0:01:06.7]} 44...
Nd3 {[%clk 0:00:23]} 45. Qe3 {[%clk 0:00:58.2]} 45... Nb4 {[%clk 0:00:19.3]} 46.
g5 {[%clk 0:00:55.3]} 46... hxg5 {[%clk 0:00:20.2]} 47. hxg5 {[%clk 0:00:54.1]}
47... Kg8 {[%clk 0:00:20.6]} 48. g6 {[%clk 0:00:38.8]} 48... fxg6 {[%clk
0:00:19.6]} 49. Qg5 {[%clk 0:00:32.8]} 49... Qh7+ {[%clk 0:00:18.9]} 50. Kg3
{[%clk 0:00:32.4]} 50... Rc3+ {[%clk 0:00:18.9]} 51. Bf3 {[%clk 0:00:32.9]}
51... Kg7 {[%clk 0:00:17.5]} 52. Rxe6 {[%clk 0:00:33]} 52... Rxf3+ {[%clk
0:00:13.6]} 53. Kxf3 {[%clk 0:00:24.8]} 53... Qh3+ {[%clk 0:00:14.5]} 54. Ke2
{[%clk 0:00:23.4]} 54... Qxe6 {[%clk 0:00:15.4]} 55. Qd8 {[%clk 0:00:21.5]}
55... Nc6 {[%clk 0:00:15]} 56. Qc7+ {[%clk 0:00:21.1]} 56... Ne7 {[%clk
0:00:14.2]} 57. Qd8 {[%clk 0:00:18.1]} 57... g5 {[%clk 0:00:14.5]} 58. Qe8
{[%clk 0:00:17]} 58... g4 {[%clk 0:00:13.9]} 59. Qh5 {[%clk 0:00:16.8]} 59...
Qf5 {[%clk 0:00:13.1]} 60. Qh4 {[%clk 0:00:15.8]} 60... Ng6 {[%clk 0:00:10.8]}
61. Qd8 {[%clk 0:00:14.7]} 61... Qe4+ {[%clk 0:00:10]} 62. Kf1 {[%clk
0:00:14.7]} 62... Qf3+ {[%clk 0:00:09.9]} 63. Ke1 {[%clk 0:00:14.1]} 63... g3
{[%clk 0:00:09.4]} 64. Qd7+ {[%clk 0:00:07.5]} 64... Qf7 {[%clk 0:00:09]} 65.
Qg4 {[%clk 0:00:04.9]} 65... Qf2+ {[%clk 0:00:08.6]} 66. Kd1 {[%clk 0:00:05.2]}
66... g2 {[%clk 0:00:08.9]} 67. Qd7+ {[%clk 0:00:05.2]} 67... Qf7 {[%clk
0:00:07.4]} 68. Qg4 {[%clk 0:00:04.9]} 68... Qf1+ {[%clk 0:00:06.9]} 69. Kc2
{[%clk 0:00:05.3]} 69... g1=Q {[%clk 0:00:07.8]} 70. Qd7+ {[%clk 0:00:05.5]}
70... Qf7 {[%clk 0:00:07.6]} 71. e6 {[%clk 0:00:05.2]} 71... Qf2+ {[%clk
0:00:06.3]} 0-1

[Event "*** Titled Tuesday Blitz"]
[Site "Chess.com"]
[Date "2020.04.14"]
[Round "3"]
[White "GMKrikor"]
[Black "Duhless"]
[Result "0-1"]
[WhiteElo "2708"]
[BlackElo "3085"]
[TimeControl "180+1"]
[EndTime "10:30:06 PDT"]
[Termination "Duhless won by resignation"]

1. Nf3 {[%clk 0:03:00.9]} 1... d5 {[%clk 0:02:59.4]} 2. c4 {[%clk 0:02:59.8]}
2... d4 {[%clk 0:02:59.2]} 3. b4 {[%clk 0:02:58.5]} 3... c5 {[%clk 0:02:59]} 4.
e3 {[%clk 0:02:55.5]} 4... Nf6 {[%clk 0:02:57.6]} 5. exd4 {[%clk 0:02:52.6]}
5... cxd4 {[%clk 0:02:57.2]} 6. c5 {[%clk 0:02:53]} 6... Bg4 {[%clk 0:02:26.4]}
7. Bc4 {[%clk 0:02:47.2]} 7... Nc6 {[%clk 0:02:21]} 8. O-O {[%clk 0:02:46.3]}
8... e6 {[%clk 0:02:18.1]} 9. h3 {[%clk 0:02:27.9]} 9... Bh5 {[%clk 0:02:05.6]}
10. Re1 {[%clk 0:02:25.8]} 10... Be7 {[%clk 0:02:04.3]} 11. a3 {[%clk
0:02:12.9]} 11... O-O {[%clk 0:02:02.8]} 12. Bb2 {[%clk 0:02:13.2]} 12... Nd7
{[%clk 0:01:57.5]} 13. Qb3 {[%clk 0:01:48.4]} 13... Bf6 {[%clk 0:01:32.6]} 14.
Be2 {[%clk 0:01:30.2]} 14... d3 {[%clk 0:01:29]} 15. Bd1 {[%clk 0:01:20.7]}
15... a5 {[%clk 0:01:15]} 16. Nc3 {[%clk 0:01:07]} 16... b6 {[%clk 0:00:58.3]}
17. cxb6 {[%clk 0:00:52.8]} 17... Nxb6 {[%clk 0:00:36.8]} 18. Ne4 {[%clk
0:00:36.9]} 18... Bxb2 {[%clk 0:00:33]} 19. Qxb2 {[%clk 0:00:37.8]} 19... axb4
{[%clk 0:00:32.1]} 20. axb4 {[%clk 0:00:38.7]} 20... Rxa1 {[%clk 0:00:31.5]} 21.
Qxa1 {[%clk 0:00:39.6]} 21... Nxb4 {[%clk 0:00:31]} 22. Qb2 {[%clk 0:00:18.9]}
22... N6d5 {[%clk 0:00:26.9]} 23. Ng3 {[%clk 0:00:16.8]} 23... Bxf3 {[%clk
0:00:19.7]} 24. Bxf3 {[%clk 0:00:17.7]} 24... Qa5 {[%clk 0:00:18.9]} 25. Ra1
{[%clk 0:00:16.7]} 25... Qc7 {[%clk 0:00:18.6]} 26. Rc1 {[%clk 0:00:15.8]} 26...
Qe7 {[%clk 0:00:17]} 27. Qb3 {[%clk 0:00:13.2]} 27... Rd8 {[%clk 0:00:16.1]} 28.
Bxd5 {[%clk 0:00:07.7]} 28... Nxd5 {[%clk 0:00:14.5]} 29. Qxd3 {[%clk
0:00:07.1]} 29... g6 {[%clk 0:00:14.2]} 30. Qf3 {[%clk 0:00:05.1]} 30... Nf6
{[%clk 0:00:11.2]} 31. Nf1 {[%clk 0:00:04.9]} 31... h5 {[%clk 0:00:09.9]} 32. g3
{[%clk 0:00:04.2]} 32... Rd5 {[%clk 0:00:09.6]} 33. h4 {[%clk 0:00:04.3]} 33...
Kg7 {[%clk 0:00:09.6]} 34. Qe2 {[%clk 0:00:03.8]} 34... Qd6 {[%clk 0:00:09.2]}
35. Rd1 {[%clk 0:00:02.6]} 35... Rd3 {[%clk 0:00:08.9]} 36. Ne3 {[%clk
0:00:02.3]} 36... Qd4 {[%clk 0:00:08.3]} 37. Nc2 {[%clk 0:00:02.3]} 37... Qe4
{[%clk 0:00:08.4]} 38. Qxe4 {[%clk 0:00:02.1]} 38... Nxe4 {[%clk 0:00:08.2]} 39.
Ne1 {[%clk 0:00:03]} 39... Rxd2 {[%clk 0:00:05.7]} 40. Rxd2 {[%clk 0:00:03.3]}
40... Nxd2 {[%clk 0:00:06.6]} 41. Kg2 {[%clk 0:00:04.2]} 41... Kf6 {[%clk
0:00:06.7]} 42. Nc2 {[%clk 0:00:03.9]} 42... Nc4 {[%clk 0:00:06]} 43. Nd4 {[%clk
0:00:04.3]} 43... e5 {[%clk 0:00:06.3]} 44. Nc2 {[%clk 0:00:04.2]} 44... Ke6
{[%clk 0:00:06.3]} 45. Kf3 {[%clk 0:00:04.2]} 45... f6 {[%clk 0:00:06.3]} 46.
Ke2 {[%clk 0:00:04.4]} 46... Kd5 {[%clk 0:00:06.4]} 47. Nb4+ {[%clk 0:00:03.8]}
47... Kc5 {[%clk 0:00:06]} 48. Nd3+ {[%clk 0:00:03.7]} 48... Kd4 {[%clk
0:00:06.2]} 49. Nb4 {[%clk 0:00:04.2]} 49... Nd6 {[%clk 0:00:05]} 50. Nc6+
{[%clk 0:00:04.4]} 50... Kd5 {[%clk 0:00:05.3]} 51. Ne7+ {[%clk 0:00:04.5]}
51... Ke4 {[%clk 0:00:05.4]} 52. Nxg6 {[%clk 0:00:04.3]} 52... Nf5 {[%clk
0:00:05.2]} 53. Nf8 {[%clk 0:00:03.2]} 53... Nd4+ {[%clk 0:00:04.3]} 54. Kf1
{[%clk 0:00:03.7]} 54... Kf5 {[%clk 0:00:04.1]} 55. Nd7 {[%clk 0:00:03.6]} 55...
Nb3 {[%clk 0:00:03.8]} 56. Kg2 {[%clk 0:00:03.5]} 56... Ke6 {[%clk 0:00:03.6]}
57. Nb6 {[%clk 0:00:03.7]} 57... Nd2 {[%clk 0:00:03.7]} 58. Na4 {[%clk
0:00:03.8]} 58... f5 {[%clk 0:00:03.9]} 59. Nc3 {[%clk 0:00:03.7]} 59... f4
{[%clk 0:00:03.3]} 60. gxf4 {[%clk 0:00:02.2]} 60... exf4 {[%clk 0:00:04.2]} 61.
f3 {[%clk 0:00:02.4]} 61... Ke5 {[%clk 0:00:04.4]} 62. Nb5 {[%clk 0:00:03]}
62... Nc4 {[%clk 0:00:03.7]} 63. Nc3 {[%clk 0:00:03.2]} 63... Ne3+ {[%clk
0:00:03.6]} 64. Kh3 {[%clk 0:00:03.8]} 64... Nc2 {[%clk 0:00:02.7]} 65. Ne4
{[%clk 0:00:04.1]} 65... Ne1 {[%clk 0:00:02.5]} 66. Ng5 {[%clk 0:00:04.6]} 66...
Kd4 {[%clk 0:00:02.7]} 67. Kh2 {[%clk 0:00:03.5]} 67... Ke3 {[%clk 0:00:03.1]}
68. Kg1 {[%clk 0:00:02.8]} 68... Nxf3+ {[%clk 0:00:04]} 69. Kg2 {[%clk 0:00:03]}
69... Nxh4+ {[%clk 0:00:03.2]} 70. Kh3 {[%clk 0:00:02.9]} 70... Nf5 {[%clk
0:00:03.5]} 71. Nf7 {[%clk 0:00:02]} 71... f3 {[%clk 0:00:03.3]} 72. Ne5 {[%clk
0:00:02.9]} 72... f2 {[%clk 0:00:03.5]} 73. Kg2 {[%clk 0:00:03.8]} 73... Ke2
{[%clk 0:00:03.8]} 0-1